bitfinex-derivatives/quotes_ETHF0:USTF0_20250326
["timestamp","ask_amount","ask_price","bid_price","bid_amount"]
[1743000518409,3.2078,2013.5,2013.4,6.19452]
[1743000519026,4.20087,2013.5,2013.4,5.2014]
[1743000519226,4.20087,2013.5,2013.4,6.19452]
[1743000519227,3.2078,2013.5,2013.4,6.19452]
[1743000520525,4.20074,2013.8,2013.4,5.2014]
[1743000520712,4.20074,2013.8,2013.6,0.99302]
[1743000520915,4.20074,2013.8,2013.7,1.3339]
[1743000521114,5.13374,2013.8,2013.7,1.3339]
[1743000521410,3.2078,2013.8,2013.7,2.32687]
[1743000522223,3.2078,2013.8,2013.7,43.12687]
[1743000522416,0.9365,2014.1,2014.0,0.99283]
[1743000522613,3.2078,2014.2,2014.1,0.99278]
[1743000522920,3.2078,2014.2,2014.1,2.39628]
[1743000523115,3.21526269,2014.5,2014.3,0.99264]
[1743000523320,4.20784269,2014.5,2014.4,5.2495]
[1743000523520,3.21526269,2014.5,2014.4,5.2495]
[1743000523720,4.20784269,2014.5,2014.4,5.2495]
[1743000523920,5.57184269,2014.5,2014.4,5.2495]
[1743000524419,4.57926269,2014.5,2014.4,5.2495]
[1743000524732,5.57184269,2014.5,2014.4,5.2495]
[1743000525819,5.57184269,2014.5,2014.4,1.4035]
[1743000526019,0.99268,2014.3,2014.2,3.85246269]
[1743000526318,0.99266,2014.4,2014.2,3.85246269]
[1743000526520,2.30716,2014.4,2014.3,1.3232]
[1743000526928,2.30716,2014.4,2014.2,3.85246269]
[1743000527718,1.3145,2014.4,2014.2,6.16838269]
[1743000528114,1.3145,2014.4,2014.2,5.17566269]
[1743000528321,2.30714,2014.4,2014.2,6.16836269]
[1743000528515,2.30713,2014.4,2014.2,6.16836269]
[1743000528820,3.21526269,2014.5,2014.4,0.99263]
[1743000529020,4.60156269,2014.5,2014.4,0.99263]
[1743000529926,3.21526269,2014.5,2014.4,0.99263]
[1743000530330,0.00746269,2014.5,2014.4,0.99263]
[1743000530628,0.00746269,2014.5,2014.4,2.33403]
[1743000533535,0.00746269,2014.5,2014.4,2.72290502]
[1743000534035,0.00746269,2014.5,2014.4,5.1844]
[1743000534334,4.20784269,2014.5,2014.4,1.3414]
[1743000534535,4.20784269,2014.5,2014.4,5.1834]
[1743000534935,3.21526269,2014.5,2014.4,5.1834]
[1743000535131,4.56146269,2014.5,2014.4,5.1834]
[1743000535931,4.56146269,2014.5,2014.4,6.17603]
[1743000537332,4.56146269,2014.5,2014.4,5.1834]
[1743000537637,5.55404269,2014.5,2014.4,5.1834]
[1743000537827,5.55404269,2014.5,2014.4,3.841]
[1743000538027,5.55404269,2014.5,2014.2,1.34716269]
[1743000538028,0.99268,2014.3,2014.2,1.34716269]
[1743000538228,0.99268,2014.3,2014.2,0.00746269]
[1743000538635,2.33148,2014.3,2014.2,0.00746269]
[1743000540239,2.33148,2014.3,2013.9,52.39656]
[1743000540240,0.99283,2014.0,2013.9,52.39656]
[1743000540432,4.20063,2014.0,2013.9,52.39656]
[1743000540737,3.2078,2014.0,2013.9,52.39656]
[1743000541337,4.6032,2014.0,2013.9,52.39656]
[1743000542041,4.6032,2014.0,2013.9,51.4037]
[1743000542338,5.59603,2014.0,2013.9,51.4037]
[1743000544227,5.59603,2014.0,2013.9,52.39657]
[1743000544433,5.59603,2014.0,2013.9,51.4037]
[1743000545742,5.59603,2014.0,2013.9,52.39657]
[1743000545938,5.59603,2014.0,2013.9,51.4037]
[1743000546132,5.59603,2014.0,2013.9,50.064]
[1743000546633,0.99287,2013.9,2013.8,1.2924]
[1743000546836,0.99287,2013.9,2013.7,40.80746269]
[1743000546837,0.99292,2013.8,2013.7,40.80746269]
[1743000547037,2.01862,2013.8,2013.7,0.00746269]
[1743000547239,3.30822,2013.8,2013.7,1.00043269]
[1743000547644,3.30822,2013.8,2013.7,0.00746269]
[1743000547942,3.30822,2013.8,2013.7,1.36406269]
[1743000548241,3.30822,2013.8,2013.7,2.35703269]
[1743000548739,3.30822,2013.8,2013.7,1.36406269]
[1743000548933,3.30822,2013.8,2013.7,2.35703269]
[1743000549834,2.3153,2013.8,2013.7,2.35703269]
[1743000550041,2.28252,2013.8,2013.7,2.35703269]
[1743000550248,0.99292,2013.8,2013.7,2.35703269]
[1743000550438,0.99292,2013.8,2013.7,2.35699269]
[1743000550645,2.39172,2013.8,2013.7,2.35703269]
[1743000551643,5.6899,2014.0,2013.9,0.99287]
[1743000551644,3.2078,2014.0,2013.9,0.99287]
[1743000551940,4.96159,2015.1,2013.9,0.99287]
[1743000551941,3.2078,2014.3,2013.9,3.839]
[1743000552131,0.99281,2014.1,2014.0,1.3854]
[1743000552327,0.99283,2014.0,2013.9,3.839]
[1743000552531,3.37903,2014.0,2013.9,3.839]
[1743000552737,0.99292,2013.8,2013.7,0.00746269]
[1743000552938,0.99292,2013.8,2013.7,1.41966269]
[1743000552939,4.20072,2013.8,2013.7,1.41966269]
[1743000553440,5.58622,2013.8,2013.7,1.41966269]
[1743000553644,3.2078,2013.8,2013.7,2.41263269]
[1743000553944,0.99285,2014.0,2013.8,0.99291]
[1743000554138,0.99287,2013.9,2013.8,1.4122]
[1743000554536,2.37835,2014.0,2013.8,2.4051]
[1743000554740,0.99283,2014.0,2013.8,2.40508]
[1743000555038,4.20062,2014.1,2013.9,2.40507]
[1743000555239,4.20062,2014.1,2014.0,1.4122]
[1743000555540,4.20058,2014.1,2014.0,1.4122]
[1743000555943,5.61378,2014.1,2014.0,1.4122]
[1743000556244,5.61378,2014.1,2013.7,1.00356269]
[1743000556245,0.99288,2013.9,2013.7,1.00356269]
[1743000556443,0.99288,2013.9,2013.8,1.2936]
[1743000556739,0.99292,2013.8,2013.7,0.00746269]
[1743000556936,2.92402,2013.8,2013.7,1.30106269]
[1743000557242,1.9311,2013.8,2013.7,1.30106269]
[1743000557444,2.92402,2013.8,2013.7,1.30106269]
[1743000557746,1.9311,2013.8,2013.7,1.30106269]
[1743000557937,0.9508,2013.8,2013.7,2.29403269]
[1743000558535,1.94372,2013.8,2013.7,1.30106269]
[1743000558841,0.9508,2013.8,2013.7,2.29403269]
[1743000560037,3.2078,2013.9,2013.8,0.99292]
[1743000560236,3.2078,2013.9,2013.8,2.35412]
[1743000560534,3.2078,2014.2,2014.1,0.99278]
[1743000560736,3.2078,2014.2,2014.1,4.82978]
[1743000561143,0.9782,2014.4,2014.3,0.99268]
[1743000561345,0.9782,2014.4,2014.2,2.35389]
[1743000561547,1.97083,2014.4,2014.3,1.3612]
[1743000562143,1.97083,2014.4,2013.8,4.82889]
[1743000562144,0.99283,2014.0,2013.8,4.82889]
[1743000562343,4.20066,2014.0,2013.8,3.836]
[1743000562548,4.20066,2014.0,2013.8,4.8289]
[1743000562848,0.99287,2013.9,2013.8,3.836]
[1743000563045,2.95977,2013.9,2013.8,3.836]
[1743000563647,2.95977,2013.9,2013.7,1.34006269]
[1743000563648,0.99292,2013.8,2013.7,1.34006269]
[1743000564952,0.99292,2013.8,2013.7,0.00746269]
[1743000569255,0.99312,2013.4,2013.3,0.99314]
[1743000569459,0.99312,2013.4,2013.3,1.3637]
[1743000569653,0.99312,2013.4,2013.3,43.15687]
[1743000569855,0.99312,2013.4,2013.3,42.1637]
[1743000570160,2.38542,2013.4,2013.3,42.1637]
[1743000570355,2.483,2013.3,2012.8,1.92637]
[1743000570556,0.99322,2013.2,2013.1,0.00746269]
[1743000570763,5.59332,2013.2,2013.1,0.00746269]
[1743000570962,5.59332,2013.2,2013.1,40.80746269]
[1743000571456,5.59332,2013.2,2013.1,0.00746269]
[1743000575961,5.59332,2013.2,2013.1,1.00073269]
[1743000576166,5.59332,2013.2,2013.1,0.00746269]
[1743000576562,5.59332,2013.2,2013.1,1.30716269]
[1743000577270,4.20102,2013.2,2013.1,1.30716269]
[1743000577863,4.20102,2013.2,2013.1,2.30043269]
[1743000578266,4.20102,2013.2,2013.1,1.30716269]
[1743000579363,4.20102,2013.2,2013.1,2.30043269]
[1743000579565,3.2078,2013.2,2013.1,2.30043269]
[1743000579764,3.2078,2013.2,2013.1,3.30653269]
[1743000580158,4.20102,2013.2,2013.1,3.30653269]
[1743000580371,4.20102,2013.2,2013.1,2.31326269]
[1743000581769,4.20102,2013.2,2013.1,1.30716269]
[1743000582674,4.20102,2013.2,2013.1,0.00746269]
[1743000586973,4.20102,2013.2,2013.1,1.31756269]
[1743000587172,0.99337,2012.9,2012.8,0.99338]
[1743000587476,0.99342,2012.8,2012.7,2.30353]
[1743000587675,3.2078,2012.9,2012.7,2.30353]
[1743000587876,4.20117,2012.9,2012.8,1.3101]
[1743000588178,5.52297,2012.9,2012.8,1.3101]
[1743000590168,4.20117,2012.9,2012.8,1.3101]
[1743000590370,3.2078,2012.9,2012.8,2.30352]
[1743000590865,3.2078,2012.9,2012.8,6.13452]
[1743000591175,3.2078,2012.9,2012.8,46.93452]
[1743000592479,4.20101,2013.3,2012.9,3.47669]
[1743000592771,4.20101,2013.3,2013.0,1.0165]
[1743000592772,7.12094,2013.3,2013.0,1.0165]
[1743000592970,0.99327,2013.1,2013.0,2.0098]
[1743000593780,0.99339,2012.9,2012.8,0.99341]
[1743000593974,0.99339,2012.9,2012.7,4.8465]
[1743000594179,0.99339,2012.9,2012.8,0.99342]
[1743000594479,1.4302,2013.0,2012.8,0.99338]
[1743000594677,0.99342,2012.8,2012.7,1.0165]
[1743000594875,6.39684,2013.0,2012.6,4.16536269]
[1743000594876,0.99347,2012.7,2012.6,0.00746269]
[1743000595572,0.99347,2012.7,2012.6,1.41896269]
[1743000595770,1.95607,2012.7,2012.6,1.41896269]
[1743000597380,2.90367,2012.7,2012.6,1.41896269]
[1743000598269,1.9102,2012.7,2012.6,2.41248269]
[1743000598676,2.3279,2012.7,2012.6,2.41248269]
[1743000599479,1.3653,2012.7,2012.6,2.41248269]
[1743000599679,5.13859,2012.9,2012.7,0.99345]
[1743000599881,1.3653,2012.8,2012.7,0.99345]
[1743000600068,1.94464,2013.0,2012.7,0.99345]
[1743000600376,0.99342,2012.8,2012.7,0.9591]
[1743000600570,2.3587,2012.9,2012.7,1.95257]
[1743000600767,1.3653,2012.8,2012.7,1.95257]
[1743000601473,3.42034,2013.3,2013.1,0.99327]
[1743000601474,0.9374,2013.3,2013.1,0.99327]
[1743000601675,3.28018,2013.3,2013.1,0.99327]
[1743000601871,2.287,2013.3,2013.2,0.99322]
[1743000602077,1.3496,2013.3,2013.2,0.99322]
[1743000602279,2.34279,2013.3,2013.2,0.99322]
[1743000602584,2.34277,2013.3,2013.2,0.99322]
[1743000603082,0.99322,2013.2,2013.1,0.99323]
[1743000603277,4.5574,2013.2,2012.8,0.9631]
[1743000603482,0.9677,2013.1,2012.7,7.27077]
[1743000603678,1.3496,2013.0,2012.9,0.99337]
[1743000604068,0.94926269,2013.4,2012.9,5.69119]
[1743000604275,1.3844,2013.3,2013.2,0.99322]
[1743000604484,0.00746269,2013.4,2013.3,0.99317]
[1743000604681,0.00746269,2013.4,2013.2,0.99319]
[1743000604886,3.87468269,2013.4,2012.8,3.828]
[1743000605090,2.4064,2013.3,2013.1,0.99327]
[1743000605389,1.3844,2013.2,2013.1,0.99327]
[1743000605776,2.37763,2013.2,2013.0,0.99328]
[1743000605977,2.37765,2013.2,2013.0,0.99328]
[1743000606273,1.3844,2013.1,2013.0,0.99328]
[1743000607073,0.99076269,2013.4,2013.0,2.48323]
[1743000607277,1.39746269,2013.4,2013.3,0.99317]
[1743000607475,0.00746269,2013.4,2013.3,4.82017]
[1743000607672,0.00746269,2013.4,2013.3,3.827]
[1743000607877,0.99317,2013.3,2013.1,1.9767]
[1743000608179,1.39,2013.2,2013.1,2.96994]
[1743000608676,2.38322,2013.2,2013.1,1.9767]
[1743000608878,1.39,2013.2,2013.1,2.96997]
[1743000609684,2.38322,2013.2,2013.1,1.9767]
[1743000609984,1.39,2013.2,2013.0,4.82029]
[1743000610176,1.39,2013.1,2013.0,4.82029]
[1743000610376,1.39,2013.1,2012.8,5.1122]
[1743000610580,2.3855,2013.1,2012.9,0.99336]
[1743000610984,0.00746269,2013.4,2013.1,0.99323]
[1743000611286,1.3322,2013.2,2013.1,0.99327]
[1743000611892,1.3322,2013.2,2012.8,8.9382]
[1743000612288,1.3322,2013.2,2013.1,4.20107]
[1743000612480,0.00746269,2013.4,2013.3,0.99317]
[1743000612985,1.3322,2013.6,2013.5,0.99307]
[1743000613190,3.2078,2013.8,2013.7,0.99297]
[1743000613378,5.49011,2014.1,2013.6,8.29538]
[1743000613580,0.9309,2014.7,2013.6,8.29538]
[1743000613581,3.2078,2014.4,2013.8,5.69006]
[1743000613787,0.99279,2014.1,2013.9,0.99286]
[1743000614188,1.2895,2014.0,2013.9,0.99286]
[1743000616385,1.2895,2014.0,2013.8,4.20815269]
[1743000616592,1.2895,2014.0,2013.9,0.99287]
[1743000617798,0.00746269,2014.2,2014.1,0.99278]
[1743000618890,1.00019269,2014.2,2014.0,4.81679]
[1743000619091,1.3121,2014.1,2014.0,4.81679]
[1743000619994,0.00746269,2014.2,2014.1,0.99278]
[1743000620193,1.31296269,2014.2,2014.1,2.37238]
[1743000620398,0.00746269,2014.2,2014.1,2.37238]
[1743000620597,0.00746269,2014.2,2014.1,46.38018]
[1743000620807,0.00746269,2014.2,2014.1,48.88018]
[1743000621003,2.69e-06,2014.2,2014.1,48.88018]
[1743000621292,1.3055,2014.8,2014.6,0.99249]
[1743000621599,1.3055,2014.6,2014.4,0.99261]
[1743000621898,1.3055,2014.6,2014.5,1.3796]
[1743000622094,2.2484,2014.6,2014.5,2.37218]
[1743000622791,2.2484,2014.6,2014.4,4.20041]
[1743000622987,1.3493,2014.5,2014.4,4.20041]
[1743000623598,2.34188,2014.5,2014.4,3.2078]
[1743000623795,1.3493,2014.5,2014.3,2.29574]
[1743000623999,1.3493,2014.4,2014.3,2.29574]
[1743000624200,1.3493,2014.4,2014.3,0.99264]
[1743000627290,0.9429,2014.6,2014.2,6.30479]
[1743000627492,0.00746269,2014.8,2014.7,0.99248]
[1743000628501,1.30226269,2014.8,2014.7,0.99248]
[1743000631404,2.29469269,2014.8,2014.6,4.81251]
[1743000631799,1.3659,2014.7,2014.6,4.81251]
[1743000633600,1.3659,2014.7,2014.5,4.20033]
[1743000633804,1.3659,2014.7,2014.6,0.99253]
[1743000634501,1.3659,2014.7,2014.5,3.2078]
[1743000634703,2.3584,2014.7,2014.5,4.20037]
[1743000634902,1.0027,2014.6,2014.5,4.20037]
[1743000635109,1.2916,2014.6,2014.5,4.20037]
[1743000636110,1.2916,2014.6,2014.5,0.99257]
[1743000636307,2.28413,2014.6,2014.4,51.04959]
[1743000636502,1.0018,2014.5,2014.4,51.04963]
[1743000636809,2.2934,2014.5,2014.4,51.04963]
[1743000638008,4.21796269,2014.8,2014.4,52.53846]
[1743000638208,1.321,2014.6,2014.5,4.20038]
[1743000638608,4.21796269,2014.8,2014.5,4.20038]
[1743000638609,4.21796269,2014.8,2014.7,0.99248]
[1743000638810,2.33116269,2014.8,2014.7,0.99248]
[1743000639314,1.32846269,2014.8,2014.7,4.80948]
[1743000639514,0.00746269,2014.8,2014.7,4.80948]
[1743000639906,0.00746269,2014.8,2014.7,6.12728]
[1743000640804,2.69e-06,2014.8,2014.7,8.62728]
[1743000641022,1.9393,2015.5,2015.4,0.99214]
[1743000641221,3.3705,2015.5,2015.4,0.99214]
[1743000641810,2.3707,2015.5,2015.4,0.99214]
[1743000642012,4.2076,2015.9,2015.7,0.99195]
[1743000642216,2.3707,2015.8,2015.7,0.99195]
[1743000642512,2.3707,2015.8,2015.7,2.36385]
[1743000642714,1.4312,2015.8,2015.7,2.36385]
[1743000643516,0.00744361,2016.0,2015.7,1.3719]
[1743000643715,0.99929361,2016.0,2015.8,2.39562]
[1743000643901,2.28209,2015.9,2015.8,1.4037]
[1743000644220,2.28213,2015.9,2015.6,8.01582]
[1743000644417,2.3112,2015.8,2015.6,8.01582]
[1743000644617,1.2902,2015.7,2015.6,8.01582]
[1743000644814,0.00744361,2016.0,2015.6,7.0238]
[1743000645020,1.2902,2015.9,2015.8,0.99194]
[1743000645411,0.00744361,2016.0,2015.9,0.99189]
[1743000645611,0.00744361,2016.0,2015.9,4.19969]
[1743000646212,0.00744361,2016.0,2015.9,7.0218]
[1743000646421,0.00744361,2016.0,2015.9,8.01369]
[1743000646613,0.00744361,2016.0,2015.9,3.2078]
[1743000646821,0.00744361,2016.0,2015.9,7.0218]
[1743000647016,1.41364361,2016.0,2015.9,8.01369]
[1743000647724,1.41364361,2016.0,2015.9,7.0218]
[1743000647915,1.41364361,2016.0,2015.9,8.01369]
[1743000649722,1.41364361,2016.0,2015.9,7.0218]
[1743000650323,1.41364361,2016.0,2015.9,8.01369]
[1743000650622,1.41364361,2016.0,2015.9,7.0218]
[1743000650928,1.41364361,2016.0,2015.9,8.01369]
[1743000652022,0.00744361,2016.0,2015.9,8.01369]
[1743000652729,0.00744361,2016.0,2015.9,10.51369]
[1743000653022,3.61e-06,2016.0,2015.9,10.51369]
[1743000653329,1.91877,2016.8,2016.1,2.47949]
[1743000653627,1.3121,2016.5,2016.4,0.99164]
[1743000653822,1.3121,2016.5,2016.4,45.60264]
[1743000654429,1.3121,2016.5,2016.4,4.80264]
[1743000654722,1.3121,2016.5,2016.2,4.18084361]
[1743000654932,1.3121,2016.5,2016.4,3.811]
[1743000655127,1.3121,2016.5,2016.3,3.811]
[1743000655525,2.30371,2016.5,2016.3,3.811]
[1743000656024,2.36464,2016.4,2016.3,3.811]
[1743000656627,1.373,2016.4,2016.3,3.811]
[1743000656828,1.373,2016.4,2016.2,4.20697361]
[1743000656829,0.99169,2016.3,2016.2,0.00744361]
[1743000657031,0.9785,2016.3,2016.2,0.00744361]
[1743000657223,1.97019,2016.3,2016.2,0.00744361]
[1743000657427,2.3515,2016.3,2016.2,0.00744361]
[1743000658932,3.34319,2016.3,2016.2,0.00744361]
[1743000662233,2.3515,2016.3,2016.2,0.00744361]
[1743000662540,3.34319,2016.3,2016.2,0.00744361]
[1743000665335,2.3515,2016.3,2016.2,0.99918361]
[1743000665537,3.34319,2016.3,2016.2,0.99918361]
[1743000665840,3.34319,2016.3,2016.2,0.00744361]
[1743000666030,3.34319,2016.3,2016.2,0.99918361]
[1743000666231,3.34319,2016.3,2016.2,0.00744361]
[1743000666424,2.3515,2016.3,2016.2,0.00744361]
[1743000666731,3.2078,2016.5,2016.4,0.99164]
[1743000666939,1.3216,2016.5,2016.4,0.99164]
[1743000667326,1.3216,2016.5,2016.4,2.32044]
[1743000667727,1.3216,2016.5,2016.4,43.12044]
[1743000668227,0.00744361,2016.7,2016.5,0.99155]
[1743000668428,0.00744361,2016.7,2016.6,1.3471]
[1743000668722,1.38374361,2016.7,2016.6,2.33865]
[1743000668926,2.37524361,2016.7,2016.6,2.33865]
[1743000669127,1.38374361,2016.7,2016.6,2.33865]
[1743000669330,1.38374361,2016.7,2016.6,1.3471]
[1743000669531,2.37524361,2016.7,2016.6,2.33865]
[1743000669729,2.37524361,2016.7,2016.4,41.7415]
[1743000669937,4.5841,2016.6,2016.2,7.02224361]
[1743000670133,2.36791,2016.5,2016.4,0.99163]
[1743000670440,0.99164,2016.4,2016.3,1.3471]
[1743000670630,2.3486,2016.4,2016.3,2.33879]
[1743000670940,3.34024,2016.4,2016.3,1.3471]
[1743000671138,0.99169,2016.3,2016.2,0.00744361]
[1743000671331,3.31289,2016.3,2016.2,0.00744361]
[1743000672942,3.31289,2016.3,2015.7,40.8]
[1743000672943,0.99194,2015.8,2015.7,0.99197]
[1743000673236,0.9919,2015.9,2015.8,0.99191]
[1743000673426,2.47938,2016.2,2015.8,0.9919]
[1743000673632,0.99189,2015.9,2015.8,0.9919]
[1743000673831,0.99189,2015.9,2015.8,0.99194]
[1743000674040,0.99189,2015.9,2015.7,1.3966]
[1743000674240,0.99194,2015.8,2015.7,2.38856]
[1743000674431,0.99192,2015.9,2015.8,0.99194]
[1743000674632,0.99192,2015.9,2015.7,2.38856]
[1743000674842,0.99192,2015.9,2015.8,0.99194]
[1743000675135,0.99185,2016.0,2015.8,3.2078]
[1743000675339,0.99189,2015.9,2015.8,3.2078]
[1743000675932,0.99189,2015.9,2015.6,0.00744361]
[1743000675933,0.99199,2015.7,2015.6,0.00744361]
[1743000676130,1.957,2015.8,2015.7,0.99199]
[1743000676335,1.957,2015.8,2015.6,0.99945361]
[1743000676535,0.99199,2015.7,2015.6,0.00744361]
[1743000677046,0.99199,2015.7,2015.6,0.99948361]
[1743000677235,0.99199,2015.7,2015.6,0.00744361]
[1743000677841,2.94897,2015.8,2015.6,0.99948361]
[1743000678247,4.19968,2016.0,2015.8,0.99193]
[1743000678446,4.19968,2016.0,2015.9,1.303]
[1743000678944,0.99188,2016.0,2015.9,1.303]
[1743000679537,0.99188,2016.0,2015.9,42.103]
[1743000679737,1.9093,2016.2,2016.0,0.99179]
[1743000680041,3.2078,2016.6,2016.1,2.47944]
[1743000680345,1.94181,2016.5,2016.4,0.99164]
[1743000680546,0.99164,2016.4,2016.3,4.79666]
[1743000680745,0.99164,2016.4,2016.3,3.805]
[1743000681049,0.99164,2016.4,2016.3,4.79669]
[1743000681241,0.99164,2016.4,2016.3,5.2116]
[1743000681438,0.9918,2016.2,2016.1,3.805]
[1743000681642,0.9918,2016.2,2016.1,4.79677]
[1743000683847,0.9918,2016.2,2016.1,3.805]
[1743000684257,0.9918,2016.2,2016.1,4.79679]
[1743000684445,0.9918,2016.2,2016.1,3.805]
[1743000685357,0.9918,2016.2,2016.1,5.2218]
[1743000685855,0.9918,2016.2,2016.1,6.21359]
[1743000686055,0.99164,2016.4,2016.3,0.99169]
[1743000686252,0.99169,2016.3,2016.2,1.3204]
[1743000686855,0.99169,2016.3,2016.2,2.31211]
[1743000687053,0.99168,2016.4,2016.3,0.99167]
[1743000687552,4.158,2016.5,2016.1,7.22419]
[1743000687753,0.9502,2016.5,2016.3,0.99165]
[1743000687959,0.00744361,2016.7,2016.2,3.42526]
[1743000688146,0.99898361,2016.7,2016.6,0.99155]
[1743000688352,0.99148,2016.8,2016.7,0.99147]
[1743000688555,0.9915,2016.7,2016.6,3.803]
[1743000690063,0.9915,2016.7,2016.6,4.79455]
[1743000690264,0.9915,2016.7,2016.6,3.803]
[1743000691062,1.9869,2016.7,2016.6,3.803]
[1743000691856,0.9915,2016.7,2016.6,4.79455]
[1743000692457,0.9915,2016.7,2016.6,3.803]
[1743000692659,0.9915,2016.7,2016.6,4.79455]
[1743000692960,1.3127,2016.8,2016.7,0.9915]
[1743000693166,2.30415,2016.8,2016.6,4.79451]
[1743000693465,1.3127,2016.8,2016.7,0.9915]
[1743000693665,2.30415,2016.8,2016.7,0.9915]
[1743000693862,2.30415,2016.8,2016.6,3.803]
[1743000693863,0.9915,2016.7,2016.6,3.803]
[1743000694069,2.3068,2016.7,2016.6,3.803]
[1743000695368,1.3153,2016.7,2016.4,3.21524361]
[1743000695561,0.99159,2016.5,2016.4,3.80844361]
[1743000696069,2.28919,2016.5,2016.4,3.80844361]
[1743000696468,2.28919,2016.5,2016.4,0.00744361]
[1743000698361,0.99184,2016.0,2015.9,45.59189]
[1743000698969,0.99189,2015.9,2015.8,0.99193]
[1743000699165,2.37529,2015.9,2015.8,4.79193]
[1743000699561,2.37529,2015.9,2015.8,4.79194]
[1743000699767,2.37529,2015.9,2015.7,44.99975]
[1743000699965,2.37529,2015.9,2015.8,5.2039]
[1743000700472,2.37529,2015.9,2015.8,6.19584]
[1743000700670,2.37529,2015.9,2015.8,5.2039]
[1743000700966,2.37529,2015.9,2015.8,1.4039]
[1743000701563,1.58804,2015.8,2015.7,48.79877]
[1743000701759,2.97614,2015.8,2015.7,47.8068]
[1743000702366,2.97614,2015.8,2015.7,44.0078]
[1743000702574,2.97614,2015.8,2015.7,40.8]
[1743000702869,0.99199,2015.7,2015.6,3.80644361]
[1743000703068,2.38009,2015.7,2015.6,3.80644361]
[1743000703271,2.38009,2015.7,2015.6,44.60644361]
[1743000705077,1.3881,2015.7,2015.6,45.96984361]
[1743000705874,1.3881,2015.7,2015.6,46.96188361]
[1743000706065,2.38009,2015.7,2015.6,45.96984361]
[1743000706873,2.38009,2015.7,2015.6,46.96188361]
[1743000707176,2.38009,2015.7,2015.6,45.96984361]
[1743000707370,2.38009,2015.7,2015.6,44.60644361]
[1743000709777,2.38009,2015.7,2015.6,40.80744361]
[1743000710382,1.3881,2015.7,2015.6,41.79948361]
[1743000710675,2.38009,2015.7,2015.6,43.14688361]
[1743000711472,2.38009,2015.7,2015.6,42.15484361]
[1743000711677,2.38009,2015.7,2015.6,43.14688361]
[1743000712066,2.38009,2015.7,2015.6,40.80744361]
[1743000712271,2.38009,2015.7,2015.6,41.79948361]
[1743000714166,1.3881,2015.7,2015.6,41.79948361]
[1743000714374,1.3881,2015.7,2015.6,43.14368361]
[1743000714780,0.5961,2015.8,2015.7,0.99199]
[1743000714974,0.5961,2015.8,2015.7,2.33619]
[1743000715374,0.5961,2015.8,2015.7,5.54399]
[1743000716080,2.96204,2015.8,2015.7,5.54399]
[1743000716384,1.9701,2015.8,2015.7,5.54399]
[1743000717471,0.5961,2015.8,2015.7,5.54399]
[1743000717682,0.5961,2015.8,2015.7,8.04399]
[1743000717983,0.00744361,2015.9,2015.8,0.99194]
[1743000718184,0.00744361,2015.9,2015.8,3.28734]
[1743000718381,1.3356,2016.2,2016.1,0.99179]
[1743000718570,2.9535,2016.5,2016.1,7.99559]
[1743000718777,1.3356,2016.4,2016.3,0.99166]
[1743000719182,0.9619,2016.8,2016.6,0.99154]
[1743000719380,2.3271,2016.7,2016.6,3.796]
[1743000719680,1.3356,2016.7,2016.6,3.796]
[1743000719879,1.3356,2016.7,2016.6,4.78755]
[1743000720285,1.3356,2016.7,2016.6,3.796]
[1743000720484,1.3356,2016.7,2016.6,4.78755]
[1743000722372,0.00744361,2016.9,2016.6,3.796]
[1743000722586,0.99147,2016.8,2016.6,4.78751]
[1743000722780,1.3751,2016.7,2016.4,3.2078]
[1743000723083,1.3751,2016.7,2016.3,50.008]
[1743000723084,0.99155,2016.6,2016.5,3.795]
[1743000723478,2.36665,2016.6,2016.5,3.795]
[1743000723680,4.5829,2016.6,2016.3,50.008]
[1743000723987,0.99164,2016.4,2016.3,50.008]
[1743000724376,2.36674,2016.4,2016.3,50.008]
[1743000724588,1.3751,2016.4,2016.1,0.99178]
[1743000724790,0.99176,2016.2,2016.1,3.794]
[1743000725283,2.36686,2016.2,2016.1,3.794]
[1743000726183,0.99179,2016.1,2016.0,3.794]
[1743000726382,0.9919,2015.9,2015.8,0.99194]
[1743000726689,0.9389,2016.0,2015.9,0.99189]
[1743000726889,1.93074,2016.0,2015.9,0.99189]
[1743000727187,1.93076,2016.0,2015.8,3.794]
[1743000727389,4.1435,2016.3,2016.2,0.99174]
[1743000727590,3.2078,2016.3,2016.2,4.78474]
[1743000727978,1.93048,2016.6,2016.5,0.99159]
[1743000728187,0.9389,2016.6,2016.3,2.47924]
[1743000728484,0.9389,2016.6,2016.2,3.793]
[1743000728688,0.99146,2016.8,2016.6,0.99151]
[1743000728888,0.9915,2016.7,2016.6,3.793]
[1743000729387,0.00744361,2016.9,2016.3,4.1323]
[1743000729586,0.99155,2016.6,2016.5,3.793]
[1743000729984,1.87785,2016.6,2016.5,3.793]
[1743000731180,0.00744361,2016.9,2016.7,0.99145]
[1743000731391,0.99146,2016.8,2016.6,0.99151]
[1743000731691,0.99146,2016.8,2016.7,1.4047]
[1743000731896,0.99155,2016.6,2016.5,3.793]
[1743000732596,0.99155,2016.6,2016.5,3.792]
[1743000733294,0.99152,2016.7,2016.5,4.78358]
[1743000733695,0.00744361,2016.9,2016.5,3.792]
[1743000733995,0.99147,2016.8,2016.6,0.99155]
[1743000734182,0.99147,2016.8,2016.6,2.40965]
[1743000734383,0.00744361,2016.9,2016.8,0.99145]
[1743000734791,0.00744361,2016.9,2016.8,41.79145]
[1743000735596,0.00744361,2016.9,2016.8,42.74085]
[1743000737897,0.00744361,2016.9,2016.7,1.4181]
[1743000738197,0.99888361,2016.9,2016.7,0.99148]
[1743000738491,0.99888361,2016.9,2016.8,3.79]